bitfinex-derivatives/quotes_BTCF0:USTF0_20250912
["timestamp","ask_amount","ask_price","bid_price","bid_amount"]
[1757665929757,1.77278046,115190.0,115180.0,0.44714618]
[1757665929962,1.77278046,115190.0,115180.0,0.08634618]
[1757665930565,1.77278046,115190.0,115180.0,0.06334618]
[1757665931359,1.77278046,115190.0,115180.0,0.001]
[1757665931957,1.3997,115190.0,115180.0,0.001]
[1757665932267,1.77278046,115190.0,115180.0,0.06334618]
[1757665932964,2.13358046,115190.0,115180.0,0.001]
[1757665933965,2.14224114,115190.0,115180.0,0.001]
[1757665934369,2.32878137,115190.0,115180.0,0.001]
[1757665934665,2.14224114,115190.0,115180.0,0.001]
[1757665935270,0.60862,115190.0,115180.0,0.21054023]
[1757665935466,0.79516023,115190.0,115180.0,0.21054023]
[1757665935670,0.79516023,115190.0,115180.0,0.3848]
[1757665935965,1.58624023,115190.0,115180.0,0.57134023]
[1757665936268,1.58624023,115190.0,115180.0,0.3848]
[1757665936466,0.79516023,115190.0,115180.0,0.3848]
[1757665936764,1.58620023,115190.0,115180.0,0.3848]
[1757665937561,0.79516023,115190.0,115180.0,0.3848]
[1757665937761,1.58620023,115190.0,115180.0,0.57134023]
[1757665938868,1.58620023,115190.0,115180.0,0.3848]
[1757665939968,1.31640023,115190.0,115180.0,0.3848]
[1757665942063,0.52536023,115190.0,115180.0,0.3848]
[1757665942269,1.31636023,115190.0,115180.0,0.3848]
[1757665943064,1.50290046,115190.0,115180.0,0.44714618]
[1757665948473,1.12978,115190.0,115180.0,0.44714618]
[1757665948675,1.50286046,115190.0,115180.0,0.44714618]
[1757665950272,1.50286046,115190.0,115180.0,0.3848]
[1757665951173,0.71190046,115190.0,115180.0,0.3848]
[1757665951471,1.50282046,115190.0,115180.0,0.3848]
[1757665952574,1.50282046,115190.0,115180.0,0.024]
[1757665954872,1.50282046,115190.0,115180.0,0.3848]
[1757665955870,1.50282046,115190.0,115180.0,0.44728836]
[1757665957076,1.50282046,115190.0,115180.0,0.08648836]
[1757665959483,1.50282046,115190.0,115180.0,0.024]
[1757665962285,1.50286046,115190.0,115180.0,0.024]
[1757665962479,1.50286046,115190.0,115180.0,0.10213354]
[1757665968394,1.25420568,115190.0,115180.0,0.10213354]
[1757665973097,1.25396568,115190.0,115180.0,0.46293354]
[1757665975698,0.33886,115190.0,115180.0,0.71293354]
[1757665975900,0.30404,115190.0,115180.0,1.94501836]
[1757665976300,0.30404,115190.0,115180.0,2.023108]
[1757665976799,0.30404,115190.0,115180.0,1.853108]
[1757665976999,0.30404,115190.0,115180.0,2.023108]
[1757665979401,0.30404,115190.0,115180.0,1.94501836]
[1757665980205,0.30404,115190.0,115180.0,2.023108]
[1757665980504,0.30404,115190.0,115180.0,1.94501836]
[1757665980908,0.30404,115190.0,115180.0,2.05422636]
[1757665984319,0.30404,115190.0,115180.0,2.46422636]
[1757665984613,0.30404,115190.0,115180.0,2.43287178]
[1757665984912,0.30404,115190.0,115180.0,2.35489836]
[1757665985612,0.30404,115190.0,115180.0,1.315527]
[1757665985815,0.30404,115190.0,115180.0,2.35485836]
[1757665986813,0.30404,115190.0,115180.0,1.56437836]
[1757665987017,0.30404,115190.0,115180.0,2.35485836]
[1757665989215,0.30404,115190.0,115180.0,2.4327899]
[1757665989414,0.30404,115190.0,115180.0,2.35485836]
[1757665989624,0.30404,115190.0,115180.0,2.4327899]
[1757665989813,0.30404,115190.0,115180.0,2.35485836]
[1757665990214,0.30404,115190.0,115180.0,2.43278709]
[1757665990720,0.30404,115190.0,115180.0,1.64230709]
[1757665990923,0.32648,115190.0,115180.0,1.87385573]
[1757665991226,0.32648,115190.0,115180.0,2.12270709]
[1757665993723,0.32648,115190.0,115180.0,2.04477836]
[1757665994813,0.32648,115190.0,115180.0,1.795927]
[1757665995112,0.32648,115190.0,115180.0,2.04477836]
[1757665996316,0.32648,115190.0,115180.0,2.15398636]
[1757665998737,0.13171556,115190.0,115180.0,1.63398636]
[1757665998912,0.03647,115220.0,115210.0,0.01393]
[1757665999222,0.30244,115220.0,115210.0,1.35178146]
[1757666000223,0.30444,115220.0,115210.0,1.43955586]
[1757666000921,0.30444,115220.0,115210.0,1.5073213]
[1757666001328,0.30444,115220.0,115210.0,1.4205469]
[1757666001626,0.30744,115220.0,115210.0,1.4205469]
[1757666002122,0.30744,115220.0,115210.0,0.50584122]
[1757666002317,0.30744,115220.0,115210.0,1.4428569]
[1757666002623,0.43186568,115220.0,115210.0,1.4428569]
[1757666002812,0.43186568,115220.0,115210.0,1.31843122]
[1757666003932,0.43186568,115220.0,115210.0,1.31839122]
[1757666004426,0.43186568,115220.0,115210.0,1.25604544]
[1757666004825,0.43186568,115220.0,115210.0,1.38047112]
[1757666005529,0.43186568,115220.0,115210.0,1.45842156]
[1757666005830,0.43186568,115220.0,115210.0,1.45838156]
[1757666006227,0.30744,115220.0,115210.0,1.45838156]
[1757666006430,0.43186568,115220.0,115210.0,1.45838156]
[1757666006828,0.43186568,115220.0,115210.0,1.33395588]
[1757666007025,1.18097136,115220.0,115210.0,0.16906588]
[1757666007232,1.20134019,115220.0,115210.0,0.06335063]
[1757666008131,1.47114019,115220.0,115210.0,0.06335063]
[1757666010131,1.47114019,115220.0,115210.0,0.001]
[1757666010731,1.59556587,115220.0,115210.0,0.001]
[1757666011039,1.47114019,115220.0,115210.0,0.001]
[1757666013030,1.32576587,115220.0,115210.0,0.06335063]
[1757666013242,1.32576587,115220.0,115210.0,0.001]
[1757666013425,1.20134019,115220.0,115210.0,0.001]
[1757666013835,1.32576587,115220.0,115210.0,0.001]
[1757666017136,1.59556587,115220.0,115210.0,0.001]
[1757666019333,1.34556587,115220.0,115210.0,0.001]
[1757666021733,1.59556587,115220.0,115210.0,0.001]
[1757666022238,2.38564587,115220.0,115210.0,0.001]
[1757666028240,1.59556587,115220.0,115210.0,0.001]
[1757666028437,2.57226491,115220.0,115210.0,0.001]
[1757666035051,2.57326491,115220.0,115210.0,0.002]
[1757666035353,2.57426491,115220.0,115210.0,0.002]
[1757666037152,2.59518816,115220.0,115210.0,0.002]
[1757666040654,2.59518816,115220.0,115190.0,0.06235063]
[1757666040655,2.3253492,115220.0,115190.0,0.06235063]
[1757666040844,0.03551,115190.0,115180.0,0.09997044]
[1757666041152,1.71296904,115190.0,115180.0,0.02202]
[1757666041354,1.71296904,115190.0,115180.0,0.08446475]
[1757666041743,2.08620712,115190.0,115180.0,0.06244475]
[1757666041943,0.03551,115180.0,115170.0,0.06244475]
[1757666042245,0.03551,115180.0,115160.0,0.08446475]
[1757666042246,0.03551,115170.0,115160.0,0.08446475]
[1757666042445,1.87958808,115170.0,115160.0,0.08446475]
[1757666042847,2.06620712,115170.0,115150.0,0.06244475]
[1757666043054,0.03551,115150.0,115140.0,0.46947337]
[1757666043254,1.5286745,115150.0,115140.0,0.45388978]
[1757666044246,0.7386345,115150.0,115140.0,0.39152293]
[1757666044450,1.5286745,115150.0,115140.0,0.39152293]
[1757666045153,1.5296745,115150.0,115140.0,0.46194104]
[1757666045356,1.5297145,115150.0,115140.0,0.46194104]
[1757666045851,1.5307145,115150.0,115140.0,0.46594104]
[1757666046360,1.5307545,115150.0,115140.0,0.46594104]
[1757666046647,1.5307545,115150.0,115140.0,0.10514104]
[1757666047651,0.7406345,115150.0,115140.0,0.10514104]
[1757666048058,1.5307545,115150.0,115140.0,0.10514104]
[1757666048558,0.36739642,115150.0,115140.0,0.10514104]
[1757666048760,1.5307945,115150.0,115140.0,0.10514104]
[1757666053755,1.5308345,115150.0,115140.0,0.10514104]
[1757666055371,1.5308745,115150.0,115140.0,0.46594104]
[1757666055862,0.36739642,115150.0,115140.0,0.46594104]
[1757666056164,1.34425546,115150.0,115140.0,0.46594104]
[1757666058264,1.5308745,115150.0,115140.0,0.10514104]
[1757666058767,0.7406345,115150.0,115140.0,0.10514104]
[1757666058965,1.5308745,115150.0,115140.0,0.46594104]
[1757666059673,1.5308745,115150.0,115140.0,0.10514104]
[1757666059877,0.55401546,115150.0,115140.0,0.46594104]
[1757666060056,1.34425546,115150.0,115140.0,0.46594104]
[1757666062163,1.15763642,115150.0,115140.0,0.46594104]
[1757666062461,1.34425546,115150.0,115140.0,0.46594104]
[1757666062965,0.55401546,115150.0,115140.0,0.46594104]
[1757666063167,1.34425546,115150.0,115140.0,0.46594104]
[1757666064067,1.34425546,115150.0,115140.0,0.47975104]
[1757666064365,1.15763642,115150.0,115140.0,0.47975104]
[1757666064567,1.34425546,115150.0,115140.0,0.47975104]
[1757666065062,1.34425546,115150.0,115140.0,0.46594104]
[1757666066768,1.34425546,115150.0,115140.0,0.66637008]
[1757666066769,1.14489642,115150.0,115140.0,0.66637008]
[1757666067064,1.33151546,115150.0,115140.0,0.66637008]
[1757666067963,1.33151546,115150.0,115140.0,0.72873693]
[1757666068361,1.31162904,115150.0,115140.0,0.72873693]
[1757666068866,1.31162904,115150.0,115140.0,0.54211789]
[1757666069167,1.32505904,115150.0,115140.0,0.71492693]
[1757666069568,1.32505904,115150.0,115140.0,0.52830789]
[1757666070173,1.32505904,115150.0,115140.0,0.46594104]
[1757666070671,1.13844,115150.0,115140.0,0.52837796]
[1757666070863,1.32505904,115150.0,115140.0,0.46594104]
[1757666071064,1.31158904,115150.0,115140.0,0.54218796]
[1757666071272,1.31158904,115150.0,115140.0,0.66637008]
[1757666072771,0.52138904,115150.0,115140.0,0.66637008]
[1757666072985,1.31158904,115150.0,115140.0,0.66637008]
[1757666073773,1.12497,115150.0,115140.0,0.66637008]
[1757666074069,1.31158904,115150.0,115140.0,0.66637008]
[1757666074676,2.81158904,115150.0,115140.0,0.66637008]
[1757666075967,0.33477,115150.0,115140.0,0.93981602]
[1757666076164,1.31158904,115150.0,115140.0,0.66637008]
[1757666076670,0.52138904,115150.0,115140.0,0.66637008]
[1757666077272,0.33477,115150.0,115140.0,0.66637008]
[1757666077472,0.52138904,115150.0,115140.0,0.66637008]
[1757666078071,0.52138904,115150.0,115140.0,0.74432052]
[1757666078872,0.53481904,115150.0,115140.0,0.74432052]
[1757666079674,0.53481904,115150.0,115140.0,0.55770148]
[1757666079868,0.53481904,115150.0,115140.0,0.74432052]
[1757666081778,0.53481904,115150.0,115140.0,0.55770148]
[1757666083668,0.53481904,115150.0,115140.0,0.54389148]
[1757666085277,0.53481904,115150.0,115140.0,0.53518855]
[1757666085668,0.72143808,115150.0,115140.0,0.54381036]
[1757666086379,2.22143808,115150.0,115140.0,0.54381036]
[1757666086577,2.22143808,115150.0,115140.0,0.18301036]
[1757666088873,2.03481904,115150.0,115140.0,0.18301036]
[1757666089179,0.72143808,115150.0,115140.0,0.18301036]
[1757666089880,0.53481904,115150.0,115140.0,0.18301036]
[1757666090380,0.47270544,115150.0,115140.0,0.18301036]
[1757666093280,0.47270544,115150.0,115140.0,0.10505992]
[1757666095375,0.47270544,115150.0,115140.0,0.21419053]
[1757666096583,0.47270544,115150.0,115140.0,0.10505992]
[1757666097185,1.26278544,115150.0,115140.0,0.10505992]
[1757666099386,0.97783727,115150.0,115140.0,0.09816727]
[1757666099584,1.76787727,115150.0,115140.0,0.08315682]
[1757666101196,2.01787727,115150.0,115140.0,0.08315682]
[1757666101400,2.28767727,115150.0,115130.0,0.06251937]
[1757666101581,0.64411088,115140.0,115130.0,0.06251937]
[1757666101781,1.21411088,115140.0,115130.0,0.06251937]
[1757666102482,1.21411088,115140.0,115120.0,0.07068053]
[1757666102483,1.21411088,115140.0,115120.0,0.06251937]
[1757666102695,0.94884544,115130.0,115120.0,0.08520937]
[1757666102879,1.26884544,115130.0,115120.0,0.08520937]
[1757666103387,0.47880544,115130.0,115120.0,0.08520937]
[1757666103593,1.26884544,115130.0,115120.0,0.08520937]
[1757666103780,1.26884544,115130.0,115120.0,0.02269]
[1757666104586,1.26884544,115130.0,115120.0,0.03445492]
[1757666104587,1.26984544,115130.0,115120.0,0.03445492]
[1757666105386,1.29023407,115130.0,115120.0,0.03445492]
[1757666109786,1.29023407,115130.0,115120.0,0.04759492]
[1757666110290,0.50019407,115130.0,115120.0,0.04759492]
[1757666110498,1.29023407,115130.0,115120.0,0.12561248]
[1757666111399,1.29023407,115130.0,115120.0,0.48641248]
[1757666111597,0.50019407,115130.0,115120.0,0.40839492]
[1757666111799,1.29023407,115130.0,115120.0,0.40839492]
[1757666112402,0.50019407,115130.0,115120.0,0.40839492]
[1757666112700,0.48703407,115130.0,115120.0,0.40839492]
[1757666114699,0.48703407,115130.0,115120.0,0.48641248]
[1757666115696,0.36252863,115130.0,115120.0,0.82325438]
[1757666115897,0.321,115130.0,115120.0,0.86974226]
[1757666116206,0.321,115130.0,115120.0,1.76891287]
[1757666119003,0.321,115130.0,115120.0,0.97887287]
[1757666119204,0.321,115130.0,115120.0,1.76915287]
[1757666119506,0.321,115130.0,115120.0,0.97887287]
[1757666119701,0.321,115130.0,115120.0,1.76907287]
[1757666121707,0.321,115130.0,115120.0,1.65994226]
[1757666122293,0.321,115130.0,115120.0,2.3544477]
[1757666122900,0.20372439,115130.0,115120.0,2.3544477]
[1757666123706,0.20372439,115130.0,115120.0,1.5642477]
[1757666124008,0.20372439,115130.0,115120.0,2.3542877]
[1757666128216,0.20372439,115130.0,115120.0,2.10527682]
[1757666128515,0.20372439,115130.0,115120.0,1.5642477]
[1757666128702,0.20372439,115130.0,115120.0,2.3549277]
[1757666129316,0.20372439,115130.0,115120.0,1.5642477]
[1757666129516,0.20372439,115130.0,115120.0,2.3548477]
[1757666131121,0.20372439,115130.0,115120.0,1.5642477]
[1757666131343,0.20372439,115130.0,115120.0,2.3550477]
[1757666136133,0.20372439,115130.0,115120.0,1.5642477]
[1757666136330,0.20376439,115130.0,115120.0,2.3545677]
[1757666138732,0.01982639,115150.0,115140.0,0.0868278]
[1757666138928,0.15982639,115150.0,115140.0,1.81188868]
[1757666139230,0.29982639,115150.0,115140.0,1.79659184]
[1757666140030,0.30082639,115150.0,115140.0,1.79659184]
[1757666141729,0.30382639,115150.0,115140.0,1.3831664]
[1757666141943,0.30382639,115150.0,115140.0,1.50767184]
[1757666144035,0.30382639,115150.0,115140.0,1.63217728]
[1757666144835,0.30382639,115150.0,115140.0,1.99297728]
[1757666147154,0.30382639,115150.0,115140.0,2.16297728]
[1757666147634,0.284,115150.0,115140.0,2.94748272]
[1757666147836,0.181,115150.0,115140.0,3.04283837]
[1757666148137,0.181,115150.0,115140.0,2.83110444]
[1757666148728,0.02875505,115150.0,115140.0,2.95560988]
[1757666148939,0.314,115150.0,115140.0,2.16532988]
[1757666149133,0.314,115150.0,115140.0,2.95524988]
[1757666149531,0.314,115150.0,115140.0,2.83074444]
[1757666150141,0.314,115150.0,115140.0,2.95524988]
[1757666151633,0.314,115150.0,115140.0,3.11108257]
[1757666151834,0.314,115150.0,115140.0,2.32116257]
[1757666152034,0.314,115150.0,115140.0,3.11108257]
[1757666152543,0.314,115150.0,115140.0,3.14161018]
[1757666153135,0.279,115150.0,115140.0,3.14161018]
[1757666154835,0.10575783,115150.0,115140.0,3.14161018]
[1757666155041,0.07075783,115150.0,115140.0,3.33754798]
[1757666155239,0.01376,115170.0,115150.0,0.0868177]
[1757666155438,0.30376,115170.0,115160.0,2.04940891]
[1757666155742,0.30376,115170.0,115160.0,2.59799354]
[1757666156741,0.30576,115170.0,115160.0,2.59799354]
[1757666157535,0.30776,115170.0,115160.0,2.59799354]
[1757666157735,0.30776,115170.0,115160.0,2.66774679]
[1757666158645,0.30576,115170.0,115160.0,2.66774679]
[1757666158943,0.30476,115170.0,115160.0,2.66974679]
[1757666160143,0.30476,115170.0,115160.0,2.560656]
[1757666160539,0.30476,115170.0,115160.0,2.74728154]
[1757666160745,0.291,115170.0,115160.0,2.74728154]
[1757666160941,0.291,115170.0,115160.0,2.85633233]
[1757666161652,0.291,115170.0,115160.0,2.06653233]
[1757666161844,0.291,115170.0,115160.0,2.85633233]
[1757666162547,0.291,115170.0,115160.0,2.06653233]
[1757666162735,0.291,115170.0,115160.0,2.85629233]
[1757666164447,0.0135,115190.0,115180.0,0.10461284]
[1757666164637,0.3535,115190.0,115180.0,2.56922392]
[1757666164838,0.3535,115190.0,115180.0,2.64702906]
[1757666165844,0.3545,115190.0,115180.0,2.64802906]
[1757666166048,0.3575,115190.0,115180.0,2.64802906]
[1757666166453,0.3545,115190.0,115180.0,2.64798906]
[1757666166638,0.3555,115190.0,115180.0,2.64798906]
[1757666166952,0.3555,115190.0,115180.0,1.85826906]
[1757666167143,0.3555,115190.0,115180.0,2.64798906]
[1757666167649,0.3545,115190.0,115180.0,2.64798906]
[1757666171255,0.3545,115190.0,115180.0,2.57018392]
[1757666172654,0.3545,115190.0,115180.0,2.64798906]
[1757666177449,0.18814384,115190.0,115180.0,3.0846146]
[1757666177659,0.20190384,115190.0,115180.0,3.0846146]
[1757666177854,0.20190384,115190.0,115180.0,3.00680946]
[1757666178263,0.07947546,115190.0,115180.0,3.00680946]
[1757666178459,0.281,115190.0,115180.0,3.00680946]
[1757666178657,0.281,115190.0,115180.0,3.11590025]
[1757666179362,0.29476,115190.0,115180.0,3.11590025]
[1757666181066,0.29476,115190.0,115180.0,3.00680946]
[1757666181665,0.29476,115190.0,115180.0,3.11590025]
[1757666185874,0.29476,115190.0,115180.0,2.32618025]
[1757666186076,0.29476,115190.0,115180.0,1.76630363]
[1757666186264,0.29476,115190.0,115180.0,2.32618025]
[1757666186468,0.29476,115190.0,115180.0,3.11562025]
[1757666187675,0.29476,115190.0,115180.0,3.19355035]
[1757666188075,0.29476,115190.0,115180.0,3.08445956]
[1757666193381,0.29476,115190.0,115180.0,2.52458294]
[1757666193579,0.29476,115190.0,115180.0,2.29501956]
[1757666193774,0.29476,115190.0,115180.0,3.08441956]
[1757666193973,0.29476,115190.0,115180.0,3.00648946]
[1757666194986,0.29476,115190.0,115180.0,1.96708946]
[1757666195186,0.29476,115190.0,115180.0,2.56986392]
[1757666197484,0.29476,115190.0,115180.0,1.78046392]
[1757666197687,0.29476,115190.0,115180.0,2.56986392]
[1757666198687,0.29476,115190.0,115180.0,1.78046392]
[1757666198885,0.29476,115190.0,115180.0,2.56982392]
[1757666199590,0.2948,115190.0,115180.0,2.56982392]
[1757666201093,0.2948,115190.0,115180.0,2.75644946]
[1757666202294,0.2948,115190.0,115180.0,1.96708946]
[1757666202489,0.2948,115190.0,115180.0,2.75644946]
[1757666202891,0.2948,115190.0,115180.0,1.96708946]
[1757666203094,0.2948,115190.0,115180.0,2.75644946]
[1757666205602,0.2948,115190.0,115180.0,1.96708946]
[1757666205796,0.2948,115190.0,115180.0,2.75644946]
[1757666206098,0.2948,115190.0,115180.0,2.91228215]
[1757666206799,0.2948,115190.0,115180.0,2.8657625]
[1757666206999,0.2948,115190.0,115180.0,2.30588588]
[1757666207202,0.2948,115190.0,115180.0,2.8657625]
[1757666207890,0.2948,115190.0,115180.0,2.75644946]
[1757666210500,0.2948,115190.0,115180.0,2.8657625]
[1757666214410,0.2948,115190.0,115180.0,2.67890606]
[1757666217703,0.2948,115190.0,115180.0,2.56959302]
[1757666217906,0.2948,115190.0,115180.0,2.72542571]
[1757666219011,0.13071925,115190.0,115180.0,2.72542571]
[1757666219399,0.3538,115190.0,115180.0,2.44525296]
[1757666219606,0.3538,115190.0,115180.0,2.60148235]
[1757666224613,0.3538,115190.0,115180.0,2.35280223]
[1757666224810,0.3538,115190.0,115180.0,2.60148235]
[1757666225914,0.3538,115190.0,115180.0,2.56959302]
[1757666227119,0.20354223,115190.0,115180.0,2.56959302]
[1757666227715,0.20354223,115190.0,115180.0,2.72583516]
[1757666230217,0.20354223,115190.0,115180.0,2.35281498]
[1757666230413,0.20354223,115190.0,115180.0,2.72583516]
[1757666232544,0.20354223,115190.0,115180.0,2.6014951]
[1757666233120,0.20354223,115190.0,115180.0,2.72583516]
[1757666234526,0.20354223,115190.0,115180.0,2.6014951]
[1757666234822,0.20354223,115190.0,115180.0,2.72583516]
[1757666239326,0.20354223,115190.0,115180.0,1.93647516]
[1757666239531,0.20354223,115190.0,115180.0,2.72643516]
[1757666240125,0.20354223,115190.0,115180.0,1.93647516]
[1757666240324,0.20354223,115190.0,115180.0,2.6020951]
[1757666242426,0.20354223,115190.0,115180.0,1.8121351]
[1757666242629,0.20354223,115190.0,115180.0,2.6019751]
[1757666243125,0.20354223,115190.0,115180.0,1.8121351]
[1757666243329,0.20354223,115190.0,115180.0,2.6020951]
[1757666244731,0.20354223,115190.0,115180.0,2.44585296]
[1757666245044,0.20354223,115190.0,115180.0,1.65589296]
[1757666245231,0.20354223,115190.0,115180.0,2.44593296]
[1757666247434,0.20354223,115190.0,115180.0,1.65589296]
[1757666247627,0.20354223,115190.0,115180.0,2.44589296]
[1757666248227,0.20354223,115190.0,115180.0,2.3215529]
[1757666248428,0.20354223,115190.0,115180.0,2.44585296]
[1757666248636,0.59892229,115190.0,115180.0,1.80049514]
[1757666248831,0.47458223,115190.0,115180.0,1.9248352]
[1757666249131,0.47458223,115190.0,115180.0,2.03420333]
[1757666250034,0.59892229,115190.0,115180.0,1.90986327]
[1757666250234,0.59892229,115190.0,115180.0,2.03420333]
[1757666250423,0.47458223,115190.0,115180.0,2.03420333]
[1757666252834,0.47458223,115190.0,115180.0,1.9248352]
[1757666256040,0.47458223,115190.0,115180.0,1.9247552]
[1757666259339,0.22458223,115190.0,115180.0,1.9247552]
[1757666261745,0.22458223,115190.0,115180.0,1.80041514]
[1757666262044,0.22458223,115190.0,115180.0,1.9247552]
[1757666263243,0.22458223,115190.0,115180.0,2.04909526]
[1757666263645,0.22458223,115190.0,115180.0,2.15846339]
[1757666264041,0.22458223,115190.0,115180.0,2.24526169]
[1757666267348,0.22458223,115190.0,115180.0,2.15830339]
[1757666268647,0.22458223,115190.0,115180.0,1.36846339]
[1757666268839,0.22458223,115190.0,115180.0,2.15822339]
[1757666270248,0.22458223,115190.0,115180.0,2.24502169]
[1757666270640,0.22458223,115190.0,115180.0,1.11978327]
[1757666270944,0.22458223,115190.0,115180.0,2.15814339]
[1757666271145,0.22458223,115190.0,115180.0,2.04877526]
[1757666271346,0.22458223,115190.0,115180.0,2.13557356]
[1757666273349,0.22458223,115190.0,115180.0,2.24494169]
[1757666274448,0.22458223,115190.0,115180.0,2.36939855]
[1757666274648,0.22458223,115190.0,115180.0,2.26003042]
[1757666276151,0.22458223,115190.0,115180.0,2.36939855]
[1757666277753,0.22458223,115190.0,115180.0,2.09939855]
[1757666277946,0.22458223,115190.0,115180.0,1.30971855]
[1757666278146,0.22458223,115190.0,115180.0,2.09923855]
[1757666281262,0.41115072,115190.0,115180.0,1.68926327]
[1757666281457,0.41115072,115190.0,115180.0,2.06240025]
[1757666281661,0.41115072,115190.0,115180.0,1.27292025]
[1757666282051,0.41115072,115190.0,115180.0,2.06240025]
[1757666282559,0.41115072,115190.0,115180.0,1.95303212]
[1757666282758,0.66115072,115190.0,115180.0,0.83196813]
[1757666282962,0.66115072,115190.0,115180.0,1.80801662]
[1757666283256,0.66115072,115190.0,115180.0,1.62144813]
[1757666283455,0.66115072,115190.0,115180.0,1.80801662]
[1757666283757,0.47458223,115190.0,115180.0,1.80801662]
[1757666283961,0.66115072,115190.0,115180.0,1.80801662]
[1757666288269,0.66115072,115190.0,115180.0,1.62144813]
[1757666288567,0.66115072,115190.0,115180.0,0.47116813]
[1757666288762,0.66115072,115190.0,115180.0,0.89988813]
[1757666289164,0.66115072,115190.0,115180.0,0.97708849]
[1757666289569,0.66115072,115190.0,115180.0,0.79052]
[1757666289769,0.66315072,115190.0,115180.0,0.79052]
[1757666290265,0.66215072,115190.0,115180.0,0.79052]
[1757666290971,0.66215072,115190.0,115180.0,0.78952]
[1757666291166,0.66215072,115190.0,115180.0,0.79052]
[1757666292272,0.47558223,115190.0,115180.0,0.79052]
[1757666292472,0.66215072,115190.0,115180.0,0.79052]
[1757666292874,0.66215072,115190.0,115180.0,0.97708849]
[1757666293276,0.66215072,115190.0,115180.0,0.79052]
[1757666295970,0.66215072,115190.0,115180.0,1.33788849]
[1757666299773,0.66215072,115190.0,115180.0,1.42468679]
[1757666300077,0.66215072,115190.0,115180.0,1.33788849]
[1757666301679,0.47558223,115190.0,115180.0,1.33788849]
[1757666301976,0.66215072,115190.0,115180.0,1.33788849]
[1757666305178,0.66215072,115190.0,115180.0,0.54836849]
[1757666305380,0.66215072,115190.0,115180.0,1.33788849]
[1757666309277,0.66215072,115190.0,115180.0,0.54836849]
[1757666309476,0.66215072,115190.0,115180.0,1.33788849]
[1757666311389,0.47558223,115190.0,115180.0,1.42468679]
[1757666311584,0.66215072,115190.0,115180.0,1.42468679]
[1757666311787,0.66215072,115190.0,115180.0,1.33788849]
[1757666315787,0.47558223,115190.0,115180.0,1.33788849]
[1757666315990,0.66215072,115190.0,115180.0,1.33788849]
[1757666318387,0.66215072,115190.0,115180.0,0.3618]
[1757666318585,0.66215072,115190.0,115180.0,1.33784849]
[1757666319291,0.41215072,115190.0,115180.0,0.54836849]
[1757666319491,0.41215072,115190.0,115180.0,1.33784849]
[1757666320000,0.41215072,115190.0,115180.0,0.54836849]
[1757666320189,0.41215072,115190.0,115180.0,1.33784849]
[1757666328286,0.41215072,115190.0,115180.0,0.001]
[1757666328490,0.22558223,115190.0,115180.0,0.001]
[1757666328695,0.49538223,115190.0,115180.0,0.001]
[1757666328996,0.68195072,115190.0,115180.0,0.001]
[1757666334505,0.49538223,115190.0,115180.0,0.001]
[1757666334689,0.68195072,115190.0,115180.0,0.001]
[1757666336396,0.6198048,115190.0,115180.0,0.001]
[1757666341995,1.53366737,115190.0,115180.0,0.001]
[1757666342199,2.14446737,115190.0,115180.0,0.001]
[1757666342407,0.01313,115170.0,115150.0,0.3608]
[1757666342605,0.13755257,115160.0,115150.0,0.3608]
[1757666342807,0.45071257,115160.0,115150.0,0.3608]
[1757666343695,0.57513514,115160.0,115150.0,0.6138]
[1757666343900,0.57513514,115160.0,115150.0,0.3638]
[1757666344104,0.57513514,115160.0,115150.0,0.006]
[1757666344596,0.57613514,115160.0,115150.0,0.007]
[1757666344800,0.57613514,115160.0,115150.0,0.004]
[1757666346603,0.57513514,115160.0,115140.0,1.23698775]
[1757666346808,0.13755257,115150.0,115140.0,1.23698775]
[1757666347015,0.44755257,115150.0,115140.0,1.23698775]
[1757666348916,0.44755257,115150.0,115140.0,1.36141032]
[1757666349214,0.46749346,115150.0,115140.0,1.34399039]
[1757666349509,0.46849346,115150.0,115140.0,1.34499039]
[1757666352612,0.46849346,115150.0,115140.0,1.22056782]
[1757666353807,0.46849346,115150.0,115140.0,1.34499039]
[1757666354516,0.34407089,115150.0,115140.0,1.34499039]
[1757666354814,0.46849346,115150.0,115140.0,1.34499039]
[1757666355316,0.34407089,115150.0,115140.0,1.34499039]
[1757666356710,0.46849346,115150.0,115140.0,1.34499039]
[1757666359820,0.46849346,115150.0,115140.0,1.22068782]
[1757666359821,0.49165346,115150.0,115140.0,1.22068782]
[1757666360118,0.49165346,115150.0,115140.0,1.34511039]
[1757666364021,0.36723089,115150.0,115140.0,1.34511039]
[1757666364214,0.49165346,115150.0,115140.0,1.34511039]
[1757666365123,0.36723089,115150.0,115140.0,1.34511039]
[1757666365516,0.49165346,115150.0,115140.0,1.34511039]
[1757666365819,0.49065346,115150.0,115140.0,1.34411039]
[1757666366221,0.49065346,115150.0,115140.0,1.21968782]
[1757666366418,0.36623089,115150.0,115140.0,1.34411039]
[1757666366819,0.49165346,115150.0,115140.0,1.34511039]
[1757666367821,0.49365346,115150.0,115140.0,1.34511039]
[1757666368222,0.49165346,115150.0,115140.0,1.34511039]
[1757666368422,0.36723089,115150.0,115140.0,1.34511039]
[1757666368723,1.99165346,115150.0,115140.0,1.34511039]
[1757666368918,1.84729,115150.0,115140.0,1.55635936]
[1757666369121,0.32413,115150.0,115140.0,1.95635936]
[1757666369625,0.32413,115150.0,115140.0,2.39635936]
[1757666370129,0.32413,115150.0,115140.0,2.14751422]
[1757666370328,0.32413,115150.0,115140.0,2.39635936]
[1757666371521,0.32413,115150.0,115140.0,2.11635936]
[1757666373330,0.32413,115150.0,115140.0,2.22572749]
[1757666373631,0.32413,115150.0,115140.0,2.22568749]
[1757666373825,0.32413,115150.0,115140.0,1.97684235]
[1757666374027,0.32413,115150.0,115140.0,2.22568749]
[1757666376734,0.32413,115150.0,115140.0,1.18732255]
[1757666376933,0.32413,115150.0,115140.0,2.22568769]
[1757666379145,0.47101257,115150.0,115140.0,0.85049595]
[1757666379336,0.47101257,115150.0,115140.0,1.32997595]
[1757666379535,0.47101257,115150.0,115140.0,1.34503039]
[1757666384547,0.47101257,115150.0,115140.0,1.22060782]
[1757666384738,0.47101257,115150.0,115140.0,1.34503039]
[1757666386249,0.34659,115150.0,115140.0,1.34503039]
[1757666386450,0.47101257,115150.0,115140.0,1.34503039]
[1757666393046,0.47101257,115150.0,115140.0,0.98423039]
[1757666393249,0.47101257,115150.0,115140.0,1.34503039]
[1757666396747,0.34659,115150.0,115140.0,1.34503039]
[1757666396947,0.47101257,115150.0,115140.0,1.34503039]
[1757666397154,0.34659,115150.0,115140.0,1.43185719]
[1757666397345,0.47101257,115150.0,115140.0,1.43185719]
[1757666398454,0.53330541,115150.0,115140.0,1.68086544]
[1757666400555,0.53330541,115150.0,115140.0,0.89138544]